fUST/lending_fUST_20250925
["ID","MTS","AMOUNT","RATE_DAILY","PERIOD"]
[387692159,1758811845542,-151.0,0.00024771,2]
[387692161,1758811845551,-500.0,0.00024771,2]
[387692163,1758811845560,-500.0,0.00024771,2]
[387692166,1758811845569,-1038.05082755,0.00024771,2]
[387692167,1758811845578,-151.0,0.00024771,2]
[387692170,1758811845588,-500.0,0.00024771,2]
[387692172,1758811845597,-151.0,0.00024771,2]
[387692174,1758811845606,-500.0,0.00024771,2]
[387692176,1758811845615,-500.0,0.00024771,2]
[387692178,1758811845624,-250.0,0.00024771,2]
[387692179,1758811845634,-500.0,0.00024771,2]
[387692181,1758811845643,-194.72792766,0.00024771,2]
[387692184,1758811845652,-285.51436141,0.00024771,2]
[387692187,1758811845662,-304.9964042,0.00024771,2]
[387692189,1758811845671,-431.08345476,0.00024802,2]
[387692190,1758811845680,-587.24,0.00024802,2]
[387692194,1758811845690,-611.71,0.00024802,2]
[387692196,1758811845699,-2422.16,0.00024803,2]
[387692199,1758811845708,-1847.87,0.00024803,2]
[387692200,1758811845717,-671.94,0.00024803,2]
[387692202,1758811845726,-168.0,0.00024883,2]
[387692204,1758811845736,-427739.220958,0.000249,2]
[387692206,1758811845745,-168.0,0.00024907,2]
[387692208,1758811845754,-823.0,0.00024995,2]
[387692210,1758811845763,-168.0,0.00025027,2]
[387692212,1758811845773,-587.24,0.00025076,2]
[387692214,1758811845782,-611.71,0.00025076,2]
[387692216,1758811845792,-2422.16,0.00025077,2]
[387692218,1758811845801,-1847.87,0.00025077,2]
[387692220,1758811845810,-671.94,0.00025077,2]
[387692222,1758811845819,-168.0,0.0002509,2]
[387692224,1758811845829,-201.0,0.00025111,2]
[387692226,1758811845838,-168.0,0.00025115,2]
[387692228,1758811845848,-168.0,0.00025154,2]
[387692230,1758811845858,-168.0,0.00025178,2]
[387692232,1758811845867,-1466.91972153,0.00025259,3]
[387692234,1758811845876,-587.24,0.0002535,2]
[387692236,1758811845886,-611.71,0.0002535,2]
[387692238,1758811845896,-2422.16,0.00025351,2]
[387692240,1758811845907,-1847.87,0.00025351,2]
[387692242,1758811845918,-671.94,0.00025351,2]
[387692244,1758811845928,-250.0,0.00025399,2]
[387692246,1758811845938,-241.63707886,0.00025526,2]
[387692248,1758811845948,-160.19,0.00025561,2]
[387692250,1758811845958,-587.44495634,0.00025624,2]
[387692252,1758811845968,-611.75421942,0.00025624,2]
[387692254,1758811845979,-2422.3115,0.00025625,2]
[387692256,1758811845989,-1847.98763665,0.00025625,2]
[387692258,1758811846001,-671.94798182,0.00025625,2]
[387692260,1758811846011,-168.3888056,0.0002614,2]
[387692262,1758811846021,-500.0,0.00026286,2]
[387692264,1758811846030,-501.15189891,0.00026286,2]
[387692266,1758811846040,-1466.91972153,0.00026331,5]
[387692268,1758811846050,-308.05950581,0.00026399,2]
[387692270,1758811846059,-4000.0,0.00026435,4]
[387692272,1758811846068,-183.07,0.00026507,2]
[387692274,1758811846078,-155.1,0.00026662,7]
[387692276,1758811846088,-155.1,0.00026667,7]
[387692278,1758811846097,-155.1,0.00026762,7]
[387692280,1758811846106,-155.1,0.00026767,7]
[387692282,1758811846115,-151.0,0.00026818,2]
[387692284,1758811846125,-229.12008207,0.00026818,2]
[387692286,1758811846135,-151.0,0.00026818,2]
[387692288,1758811846144,-195.75892033,0.00026818,2]
[387692290,1758811846153,-192.44332133,0.00026818,2]
[387692292,1758811846163,-151.0,0.00026818,2]
[387692294,1758811846172,-151.0,0.00026818,2]
[387692296,1758811846183,-199.08738968,0.00026818,2]
[387692298,1758811846200,-500.0,0.00026818,2]
[387692300,1758811846210,-151.0,0.00026818,2]
[387692302,1758811846219,-151.0,0.00026818,2]
[387692304,1758811846228,-151.0,0.00026818,2]
[387692306,1758811846238,-151.4672578,0.00026818,2]
[387692308,1758811846249,-151.0,0.00026818,2]
[387692310,1758811846259,-188.86022487,0.00026818,2]
[387692312,1758811846271,-153.78688761,0.00026818,2]
[387692314,1758811846280,-158.33962896,0.00026818,2]
[387692316,1758811846289,-151.41577387,0.00026818,2]
[387692318,1758811846298,-151.0,0.00026818,2]
[387692320,1758811846307,-500.0,0.00026818,2]
[387692322,1758811846316,-151.0,0.00026818,2]
[387692323,1758811846406,-500.0,0.00026818,2]
[387692324,1758811846416,-151.0,0.00026818,2]
[387692325,1758811846425,-500.0,0.00026834,2]
[387692326,1758811846435,-155.1,0.00026862,7]
[387692327,1758811846444,-155.1,0.00026867,7]
[387692329,1758811846453,-155.1,0.00026962,7]
[387692331,1758811846463,-155.1,0.00026967,7]
[387692333,1758811846472,-155.1,0.00027062,7]
[387692335,1758811846481,-155.1,0.00027067,7]
[387692337,1758811846490,-151.0,0.00027092,2]
[387692338,1758811846501,-500.0,0.00027092,2]
[387692340,1758811846510,-158.5590004,0.00027092,2]
[387692343,1758811846520,-151.0,0.00027092,2]
[387692344,1758811846529,-151.0,0.00027092,2]
[387692346,1758811846539,-500.0,0.00027092,2]
[387692348,1758811846548,-500.0,0.00027092,2]
[387692350,1758811846557,-198.74112318,0.00027092,2]
[387692352,1758811846566,-1616.73,0.000271,2]
[387692354,1758811846575,-269.0,0.00027123,23]
[387692356,1758811846585,-155.1,0.00027162,7]
[387692358,1758811846594,-155.1,0.00027167,7]
[387692360,1758811846603,-155.1,0.00027262,7]
[387692362,1758811846613,-155.1,0.00027267,7]
[387692364,1758811846622,-151.0,0.00027366,2]
[387692366,1758811846631,-500.0,0.00027366,2]
[387692368,1758811846640,-300.86364638,0.00027366,2]
[387692370,1758811846650,-500.0,0.00027366,2]
[387692372,1758811846659,-500.0,0.00027366,2]
[387692374,1758811846668,-205.04236636,0.00027366,2]
[387692376,1758811846677,-155.1,0.00027367,7]
[387692378,1758811846686,-960.0,0.00027397,2]
[387692380,1758811846695,-1466.91972153,0.00027403,7]
[387692382,1758811846705,-205.96,0.00027454,2]
[387692384,1758811846715,-155.14060003,0.00027467,15]
[387692385,1758811846724,-179.64071856,0.00027574,2]
[387692387,1758811846735,-198.0,0.0002764,2]
[387692390,1758811846744,-500.0,0.0002764,2]
[387692391,1758811846754,-500.0,0.0002764,2]
[387692393,1758811846763,-500.0,0.00027914,2]
[387692395,1758811846772,-500.0,0.00027914,2]
[387692397,1758811846781,-1000.01,0.00028,2]
[387692399,1758811846791,-1000.01,0.0002814,2]
[387692401,1758811846800,-350.0,0.00028188,2]
[387692403,1758811846809,-500.0,0.00028188,2]
[387692405,1758811846818,-225.2,0.00028219,14]
[387692407,1758811846828,-228.84,0.00028401,2]
[387692409,1758811846836,-500.0,0.00028462,2]
[387692411,1758811846846,-1466.91972153,0.00028475,9]
[387692413,1758811846855,-229.08924033,0.00028736,2]
[387692415,1758811846864,-225.2,0.00028904,15]
[387692417,1758811846873,-8462.7735912,0.00029052,19]
[387692419,1758811846883,-5000.0,0.00029052,23]
[387692421,1758811846892,-5000.0,0.00029052,21]
[387692423,1758811846901,-5000.0,0.00029052,18]
[387692425,1758811846911,-5000.0,0.00029052,21]
[387692426,1758811846920,-1000.0,0.000294,2]
[387692428,1758811846929,-2000.0,0.0002944,30]
[387692430,1758811846939,-1858.099999,0.0002944,30]
[387692432,1758811846948,-95000.0,0.0002944,2]
[387692434,1758811846958,-1466.91972153,0.00029547,12]
[387692436,1758811846967,-2097.34326381,0.00029587,2]
[387692438,1758811846976,-225.2,0.00029589,16]
[387692440,1758811846985,-1616.73,0.000298,2]
[387692442,1758811846995,-308.05950581,0.00029987,2]
[387692444,1758811847004,-225.2,0.00030273,17]
[387692446,1758811847014,-1466.91972153,0.00030619,14]
[387692448,1758811847023,-3888.28432633,0.00030778,2]
[387692450,1758811847032,-4586.0,0.00030878,2]
[387692451,1758811847041,-978.0,0.00030878,2]
[387692453,1758811847051,-2160.0,0.00030878,2]
[387692455,1758811847061,-635.0,0.00030878,2]
[387692457,1758811847070,-225.2,0.00030958,18]
[387692459,1758811847080,-225.2,0.00031643,19]
[387692461,1758811847090,-1466.91972153,0.0003169,16]
[387692463,1758811847099,-159.745298,0.00031699,30]
[387692465,1758811847109,-159.745298,0.00031863,30]
[387692467,1758811847118,-177.4108125,0.00032,120]
[387692469,1758811847127,-198.99999999,0.00032,120]
[387692471,1758811847136,-162.75628057,0.00032,120]
[387692473,1758811847146,-183.22441895,0.00032,120]
[387692475,1758811847155,-716.82456778,0.00032,120]
[387692477,1758811847164,-183.04,0.00032,120]
[387692479,1758811847174,-690.72402878,0.00032,120]
[387692481,1758811847183,-216.09257822,0.00032,120]
[387692483,1758811847196,-159.745298,0.00032027,30]
[387692485,1758811847205,-159.745298,0.00032219,30]
[387692487,1758811847214,-177.4108125,0.000323,120]
[387692489,1758811847223,-162.75628057,0.000323,120]
[387692491,1758811847233,-716.82456778,0.000323,120]
[387692493,1758811847244,-183.04,0.000323,120]
[387692495,1758811847255,-690.72402878,0.000323,120]
[387692497,1758811847263,-160.0,0.00032321,3]
[387692499,1758811847275,-225.2,0.00032328,20]
[387692501,1758811847285,-159.745298,0.00032384,30]
[387692503,1758811847294,-159.74529796,0.00032548,30]
[387692505,1758811847303,-159.745298,0.00032548,30]
[387692507,1758811847312,-177.4108125,0.000326,120]
[387692508,1758811847321,-162.75628057,0.000326,120]
[387692510,1758811847331,-716.82456778,0.000326,120]
[387692512,1758811847339,-183.04,0.000326,120]
[387692514,1758811847349,-690.72402878,0.000326,120]
[387692516,1758811847360,-159.745298,0.00032712,30]
[387692518,1758811847369,-1466.91972153,0.00032762,19]
[387692520,1758811847379,-480.0,0.00032876,120]
[387692522,1758811847388,-704.46,0.00032876,120]
[387692524,1758811847397,-1500.0,0.00032877,2]
[387692526,1758811847407,-159.745298,0.00032877,30]
[387692528,1758811847416,-2318.36,0.00032877,10]
[387692530,1758811847426,-716.82456778,0.00033,120]
[387692532,1758811847435,-183.04,0.00033,120]
[387692534,1758811847444,-690.72402878,0.00033,120]
[387692536,1758811847454,-225.2,0.00033013,21]
[387692538,1758811847464,-159.745298,0.00033041,30]
[387692540,1758811847473,-159.745298,0.00033233,30]
[387692542,1758811847483,-716.82456778,0.000333,120]
[387692544,1758811847491,-183.04,0.000333,120]
[387692546,1758811847501,-690.72402878,0.000333,120]
[387692548,1758811847510,-390.4368942,0.0003339,30]
[387692549,1758811847519,-159.745298,0.00033397,30]
[387692551,1758811847528,-308.05950581,0.00033575,2]
[387692553,1758811847538,-1616.73,0.000336,14]
[387692555,1758811847547,-225.2,0.00033698,22]
[387692557,1758811847556,-704.46,0.00033698,120]
[387692559,1758811847565,-1466.91972153,0.00033834,21]
[387692561,1758811847574,-978.0,0.00033878,2]
[387692563,1758811847583,-2160.0,0.00033878,2]
[387692565,1758811847592,-635.0,0.00033878,2]
[387692567,1758811847601,-160.0,0.00034,120]
[387692569,1758811847610,-160.0,0.00034,120]
[387692571,1758811847619,-160.0,0.00034,120]
[387692573,1758811847628,-826.641,0.00034236,7]
[387692575,1758811847637,-225.2,0.00034383,23]
[387692577,1758811847647,-704.46,0.0003452,120]
[387692579,1758811847657,-160.0,0.00034881,4]
[387692580,1758811847666,-1466.91972153,0.00034906,23]
[387692582,1758811847675,-160.0,0.00035,30]
[387692584,1758811847684,-160.0,0.00035,30]
[387692586,1758811847694,-225.2,0.00035068,24]
[387692588,1758811847704,-308.0576652,0.00035288,30]
[387692590,1758811847722,-390.4368942,0.00035288,30]
[387692592,1758811847732,-390.4368942,0.00035288,30]
[387692594,1758811847741,-390.4368942,0.00035288,30]
[387692596,1758811847753,-390.4368942,0.00035288,30]
[387692598,1758811847762,-390.4368942,0.00035288,30]
[387692600,1758811847772,-236.7111116,0.00035288,30]
[387692602,1758811847781,-704.46,0.00035342,120]
[387692604,1758811847790,-225.2,0.00035753,25]
[387692606,1758811847800,-1466.91972153,0.00035978,26]
[387692608,1758811847809,-519.73855678,0.00036,2]
[387692610,1758811847818,-704.46,0.00036164,120]
[387692612,1758811847828,-225.2,0.00036438,26]
[387692614,1758811847837,-151.0,0.0003676,30]
[387692616,1758811847847,-978.0,0.00036878,2]
[387692618,1758811847856,-2160.0,0.00036878,2]
[387692620,1758811847865,-635.0,0.00036878,2]
[387692622,1758811847875,-500.0,0.00036986,7]
[387692624,1758811847885,-704.46,0.00036986,120]
[387692626,1758811847894,-519.73855678,0.00037,120]
[387692628,1758811847904,-1466.91972153,0.0003705,28]
[387692630,1758811847913,-1616.73,0.000371,14]
[387692632,1758811847922,-225.2,0.00037123,27]
[387692634,1758811847931,-308.05950581,0.00037163,2]
[387692636,1758811847941,-172.0,0.000373,120]
[387692638,1758811847951,-160.0,0.0003744,5]
[387692640,1758811847960,-350.0,0.00037569,46]
[387692642,1758811847969,-151.0,0.00037569,46]
[387692644,1758811847978,-500.0,0.00037569,46]
[387692645,1758811847988,-250.0,0.00037569,46]
[387692647,1758811847998,-187.78006525,0.00037569,46]
[387692649,1758811848007,-225.2,0.00037808,28]
[387692651,1758811848016,-704.46,0.00037808,120]
[387692653,1758811848026,-500.0,0.00037808,7]
[387692655,1758811848036,-151.0,0.000379,20]
[387692657,1758811848047,-301.0,0.000381,2]
[387692659,1758811848056,-1466.91972153,0.00038122,30]
[387692661,1758811848066,-1500.0,0.00038356,2]
[387692663,1758811848076,-151.0,0.0003838,30]
[387692665,1758811848086,-225.2,0.00038493,29]
[387692667,1758811848096,-500.0,0.0003863,7]
[387692669,1758811848107,-704.46,0.0003863,120]
[387692671,1758811848116,-500.0,0.00038904,120]
[387692673,1758811848125,-500.0,0.00038904,120]
[387692675,1758811848135,-500.0,0.00038904,120]
[387692676,1758811848144,-420.0,0.00038904,120]
[387692678,1758811848155,-29359.5380139,0.00039,120]
[387692680,1758811848166,-1000.0,0.00039,30]
[387692683,1758811848176,-504.06242318,0.00039,30]
[387692684,1758811848185,-200.0,0.00039139,50]
[387692686,1758811848200,-350.0,0.00039139,50]
[387692688,1758811848210,-151.0,0.00039139,50]
[387692690,1758811848220,-500.0,0.00039139,50]
[387692692,1758811848231,-250.0,0.00039139,50]
[387692695,1758811848240,-181.08010149,0.00039139,50]
[387692696,1758811848251,-200.0,0.00039177,30]
[387692698,1758811848260,-350.0,0.00039177,30]
[387692700,1758811848271,-500.0,0.00039177,30]
[387692703,1758811848282,-151.0,0.00039177,30]
[387692704,1758811848292,-250.0,0.00039177,30]
[387692707,1758811848302,-174.61919141,0.00039177,30]
[387692708,1758811848313,-225.2,0.00039178,30]
[387692710,1758811848323,-200.0,0.00039193,32]
[387692713,1758811848333,-350.0,0.00039193,32]
[387692715,1758811848344,-500.0,0.00039193,32]
[387692717,1758811848354,-151.0,0.00039193,32]
[387692718,1758811848364,-151.0,0.00039193,32]
[387692720,1758811848373,-250.0,0.00039193,32]
[387692723,1758811848383,-168.3888056,0.00039193,32]
[387692724,1758811848392,-1466.91972153,0.00039194,32]
[387692726,1758811848402,-500.0,0.00039452,7]
[387692728,1758811848412,-704.46,0.00039452,120]
[387692738,1758811848422,-800.0,0.00039627,7]
[387692740,1758811848509,-800.0,0.00039649,7]
[387692742,1758811848518,-225.2,0.00039863,31]
[387692744,1758811848528,-978.0,0.00039878,2]
[387692746,1758811848538,-2160.0,0.00039878,2]
[387692748,1758811848547,-635.0,0.00039878,2]
[387692750,1758811848557,-18192.0894795,0.00039883,2]
[387692752,1758811848567,-425.59890595,0.000399,120]
[387692754,1758811848577,-2097.34326381,0.000399,2]
[387692756,1758811848587,-200.0,0.0003999,53]
[387692758,1758811848596,-800.0,0.00039992,7]
[387692760,1758811848606,-200.0,0.00039998,30]
[387692762,1758811848616,-151.0,0.00039998,30]
[387692764,1758811848625,-350.0,0.00039998,30]
[387692766,1758811848635,-500.0,0.00039998,30]
[387692768,1758811848644,-17940.1,0.00039998,30]
[387692770,1758811848653,-200.0,0.00039998,31]
[387692772,1758811848663,-350.0,0.00039998,31]
[387692774,1758811848672,-500.0,0.00039998,31]
[387692776,1758811848681,-151.0,0.00039998,31]
[387692778,1758811848691,-3242.20035771,0.00039998,31]
[387692780,1758811848701,-151.0,0.00039998,30]
[387692782,1758811848710,-151.0,0.00039998,31]
[387692784,1758811848722,-250.0,0.00039998,30]
[387692787,1758811848734,-156.587,0.00039998,30]
[387692788,1758811848744,-250.0,0.00039998,31]
[387692790,1758811848755,-162.380719,0.00039998,31]
[387692792,1758811848765,-156.587,0.00039998,30]
[387692794,1758811848775,-239.48459166,0.00039998,31]
[387692796,1758811848785,-200.88282832,0.00039999,30]
[387692798,1758811848795,-280.23647283,0.00039999,31]
[387692800,1758811848805,-200.0,0.00039999,30]
[387692802,1758811848815,-350.0,0.00039999,30]
[387692804,1758811848825,-151.0,0.00039999,30]
[387692806,1758811848835,-500.0,0.00039999,30]
[387692808,1758811848845,-17300.0,0.00039999,30]
[387692809,1758811848854,-506.24555274,0.00039999,30]
[387692810,1758811848863,-151.0,0.00039999,30]
[387692811,1758811848873,-205.67214787,0.00039999,30]
[387692812,1758811848882,-250.0,0.00039999,30]
[387692813,1758811848891,-151.0,0.00039999,30]
[387692814,1758811848901,-152.16896658,0.00039999,30]
[387692815,1758811848910,-151.0,0.00039999,30]
[387692816,1758811848919,-956.89539989,0.0004,4]
[387692817,1758811848928,-388241.95263687,0.0004,120]
[387692818,1758811848938,-1518.22814764,0.0004,60]
[387692819,1758811848947,-5541.83970759,0.0004,30]
[387692820,1758811848956,-500.0,0.0004,5]
[387692821,1758811848965,-500.0,0.0004,5]
[387692822,1758811848976,-328.0,0.0004,14]
[387692823,1758811848986,-328.0,0.0004,14]
[387692824,1758811848996,-328.0,0.0004,14]
[387692825,1758811849005,-328.0,0.0004,14]
[387692826,1758811849014,-328.0,0.0004,14]
[387692827,1758811849023,-328.0,0.0004,14]
[387692828,1758811849032,-328.0,0.0004,14]
[387692829,1758811849042,-328.0,0.0004,14]
[387692830,1758811849051,-328.0,0.0004,14]
[387692831,1758811849060,-328.0,0.0004,14]
[387692832,1758811849069,-328.0,0.0004,14]
[387692833,1758811849078,-328.0,0.0004,14]
[387692834,1758811849087,-328.0,0.0004,14]
[387692835,1758811849097,-328.0,0.0004,14]
[387692836,1758811849106,-328.0,0.0004,14]
[387692837,1758811849115,-328.0,0.0004,14]
[387692838,1758811849124,-328.0,0.0004,14]
[387692839,1758811849133,-151.0,0.0004,14]
[387692840,1758811849142,-328.0,0.0004,14]
[387692841,1758811849152,-151.0,0.0004,14]
[387692842,1758811849162,-328.0,0.0004,14]
[387692843,1758811849171,-151.0,0.0004,14]
[387692844,1758811849180,-328.0,0.0004,14]
[387692845,1758811849192,-151.0,0.0004,14]
[387692846,1758811849203,-328.0,0.0004,14]
[387692848,1758811849213,-328.0,0.0004,14]
[387692850,1758811849221,-328.0,0.0004,14]
[387692852,1758811849233,-151.0,0.0004,14]
[387692854,1758811849249,-163.94982091,0.0004,14]
[387692856,1758811849259,-166.0,0.0004,14]
[387692858,1758811849271,-328.0,0.0004,14]
[387692860,1758811849281,-328.0,0.0004,14]
[387692862,1758811849291,-379.08033987,0.0004,14]
[387692864,1758811849301,-500.0,0.0004,2]
[387692866,1758811849310,-12286.22359057,0.0004,15]
[387692868,1758811849320,-2004083.82060741,0.0004,120]
[387692870,1758811849329,-79771.82618781,0.0004,120]
[387692875,1758811849388,-187585.26267166,0.0004,120]
[387692876,1758811849399,-3500.0,0.0004,120]
[387692877,1758811849473,480.0,0.00019321,2]
[387692878,1758811849519,-480.0,0.00019595,2]
[387692879,1758811849528,-480.0,0.00019869,2]
[387692880,1758811849537,-126.64761428,0.00020143,2]
[387692881,1758811849660,-0.0349303,0.00020143,2]
[387692882,1758811849675,-353.31745542,0.00020143,2]
[387692883,1758811849684,-18770.38566571,0.0004,120]
[387692884,1758811849695,-7307.90595718,0.0004,120]
[387692885,1758811849706,-3502.94299894,0.0004,120]
[387692886,1758811849725,-480.0,0.00020417,2]
[387692887,1758811849734,-3182.04258127,0.0004,120]
[387692889,1758811849957,480.0,0.00019321,2]
[387692890,1758811849973,-480.0,0.00019322,2]
[387692891,1758811849983,-480.0,0.00019322,2]
[387692892,1758811849993,-172.7115885,0.00019596,2]
[387692893,1758811850005,-302.0,0.00019596,2]
[387692915,1758811850773,480.0,0.00019321,2]
[387692918,1758811850796,-480.0,0.00019322,2]
[387692920,1758811850806,-44.4924999,0.00019322,2]
[387692923,1758811850818,-435.5075001,0.00019322,2]
[387692924,1758811850828,-5.2884115,0.00019596,2]
[387692927,1758811850838,-480.0,0.00019596,2]
[387692929,1758811850847,-480.0,0.0001987,2]
[387692931,1758811850857,-480.0,0.0001987,2]
[387692932,1758811850867,-480.0,0.00020144,2]
[387692935,1758811850877,-467.62,0.00020144,2]
[387692936,1758811850887,-480.0,0.00020418,2]
[387692937,1758811850897,-480.0,0.00020691,2]
[387692938,1758811850907,-480.0,0.00020692,2]
[387692939,1758811850916,-480.0,0.00020965,2]
[387692940,1758811850926,-480.0,0.00020966,2]
[387692941,1758811850936,-480.0,0.00021239,2]
[387692942,1758811850946,-480.0,0.0002124,2]
[387692943,1758811850955,-480.0,0.00021513,2]
[387692944,1758811850965,-480.0,0.00021514,2]
[387692945,1758811850975,-480.0,0.00021787,2]
[387692946,1758811850984,-380.11,0.00021788,2]
[387692947,1758811850994,-480.0,0.00022061,2]
[387692948,1758811851004,-535.04,0.00022335,2]
[387692949,1758811851014,-1931.97,0.00024519,10]
[387692950,1758811851023,-15820.20554525,0.0004,120]
[387692951,1758811851034,-6015.14215163,0.0004,120]
[387692952,1758811851049,-511.931739,0.0004,120]
[387692953,1758811851122,168.20566004,0.00019321,2]
[387692954,1758811851178,191.89428541,0.00019321,2]
[387692955,1758811851253,480.0,0.00019321,2]
[387692956,1758811863242,-480.0,0.00019321,2]
[387692957,1758811863317,-480.0,0.00019321,2]
[387692958,1758811863388,-480.0,0.00019321,2]
[387692959,1758811863460,-480.0,0.00019322,2]
[387692960,1758811863530,-480.0,0.00019322,2]
[387692961,1758811863601,-480.0,0.00019322,2]
[387692962,1758811863671,-480.0,0.00019322,2]
[387692963,1758811863742,-374.29982094,0.00019322,2]
[387692964,1758811863814,-234.42950866,0.00019322,2]
[387692965,1758811863885,-480.0,0.00019323,2]
[387692966,1758811863953,-480.0,0.00019323,2]
[387692983,1758812169123,185.0,0.00024,120]
[387692984,1758812204000,-317.0,0.0001932,2]
[387692985,1758812204066,-280.23647283,0.0001932,2]
[387692986,1758812204131,-480.0,0.0001932,2]
[387692987,1758812204195,-237.47947786,0.0001932,2]
[387692988,1758812204258,-480.0,0.0001932,2]
[387692989,1758812204321,-480.0,0.0001932,2]
[387692990,1758812204386,-480.0,0.00019321,2]
[387692991,1758812204452,-476.63675022,0.00019321,2]
[387692992,1758812204515,-480.0,0.00019321,2]
[387692993,1758812204581,-480.0,0.00019321,2]
[387692994,1758812204644,-487.4761133,0.00019321,2]
[387692995,1758812204708,-160.81468702,0.00019321,2]
[387692996,1758812213489,-245.27348014,0.00019273,2]
[387692997,1758812213551,-480.0,0.0001932,2]
[387692998,1758812213613,-480.0,0.0001932,2]
[387692999,1758812213678,-320.72299754,0.00019321,2]
[387693000,1758812213742,-480.0,0.00019321,2]
[387693001,1758812213805,-480.0,0.00019321,2]
[387693002,1758812213869,-480.0,0.00019321,2]
[387693003,1758812213930,-480.0,0.00019321,2]
[387693004,1758812213992,-220.08448617,0.00019321,2]
[387693005,1758812214056,-232.98035473,0.00019321,2]
[387693006,1758812214119,-480.0,0.00019321,2]
[387693007,1758812214184,-480.0,0.00019321,2]
[387693008,1758812223546,-480.0,0.0001932,2]
[387693009,1758812223620,-480.0,0.00019321,2]
[387693010,1758812223687,-516.12956438,0.00019321,2]
[387693011,1758812223754,-155.20798604,0.00019321,2]
[387693012,1758812223825,-506.53731676,0.00019321,2]
[387693013,1758812223893,-480.0,0.00019321,2]
[387693014,1758812223961,-500.0,0.00019321,2]
[387693015,1758812224032,-500.0,0.00019321,2]
[387693016,1758812224105,-480.0,0.00019321,2]
[387693017,1758812224173,-480.0,0.00019321,2]
[387693018,1758812224242,-364.26026564,0.00019321,2]
[387693019,1758812233546,-115.73973436,0.00019321,2]
[387693020,1758812233609,-480.0,0.00019321,2]
[387693021,1758812233670,-480.0,0.00019321,2]
[387693022,1758812233734,-480.0,0.00019321,2]
[387693023,1758812233797,-480.0,0.00019321,2]
[387693024,1758812233861,-480.0,0.00019321,2]
[387693025,1758812233926,-480.0,0.00019321,2]
[387693026,1758812233993,-480.0,0.00019321,2]
[387693027,1758812234065,-480.0,0.00019321,2]
[387693028,1758812234129,-480.0,0.00019321,2]
[387693029,1758812234196,-480.0,0.00019321,2]
[387693030,1758812283918,-480.0,0.0001932,2]
[387693031,1758812283990,-331.0,0.0001932,2]
[387693032,1758812284068,-500.0,0.0001932,2]
[387693033,1758812284145,-311.500317,0.0001932,2]
[387693034,1758812284223,-463.14802652,0.0001932,2]
[387693035,1758812284298,-368.54300784,0.0001932,2]
[387693036,1758812284373,-500.0,0.0001932,2]
[387693037,1758812284450,-500.0,0.0001932,2]
[387693038,1758812284527,-500.0,0.0001932,2]
[387693039,1758812284596,-424.94390363,0.0001932,2]
[387693040,1758812284669,-500.0,0.0001932,2]
[387693041,1758812293634,-318.6523719,0.00019221,2]
[387693042,1758812293698,-4400.2199685,0.00019273,2]
[387693043,1758812293765,-262.2653192,0.000193,2]
[387693044,1758812359111,-37.7346808,0.000193,2]
[387693045,1758812359182,-300.0,0.00019319,2]
[387693046,1758812359252,-449.95119216,0.0001932,2]